bitfinex-derivatives/quotes_BTCF0:USTF0_20241120
["timestamp","ask_amount","ask_price","bid_price","bid_amount"]
[1732089693060,0.05377,92900.0,92898.0,0.053771]
[1732089694146,0.05377,92900.0,92899.0,1.5]
[1732089694460,0.14181,92900.0,92899.0,1.5]
[1732089697544,0.21116506,92900.0,92899.0,1.5]
[1732089703767,0.21116506,92900.0,92899.0,1.55377]
[1732089705770,0.21504506,92900.0,92899.0,1.55377]
[1732089710471,0.57584506,92900.0,92899.0,1.55377]
[1732089713057,0.21504506,92900.0,92899.0,1.55377]
[1732089713267,0.57584506,92900.0,92899.0,1.55377]
[1732089713474,0.06935506,92910.0,92899.0,1.55377]
[1732089713475,0.3608,92917.0,92902.0,0.053769]
[1732089713683,0.09192,92914.0,92913.0,0.12311706]
[1732089713859,0.3608,92919.0,92913.0,0.06935506]
[1732089714053,0.3608,92919.0,92914.0,0.053762]
[1732089714262,0.11344438,92915.0,92914.0,0.053762]
[1732089714468,0.16720538,92915.0,92914.0,0.053762]
[1732089715662,0.07528538,92915.0,92914.0,0.053762]
[1732089715871,0.16720538,92915.0,92914.0,0.053762]
[1732089721172,0.12328802,92915.0,92914.0,0.053762]
[1732089721374,0.16144702,92915.0,92914.0,0.053762]
[1732089723176,0.23080208,92915.0,92914.0,0.053762]
[1732089726171,0.28456308,92915.0,92914.0,0.053762]
[1732089729283,0.28456308,92915.0,92914.0,1.553762]
[1732089730272,0.28456308,92915.0,92914.0,1.5]
[1732089737378,0.28456308,92915.0,92914.0,1.553762]
[1732089738184,0.21520802,92915.0,92914.0,1.553762]
[1732089738381,0.13612264,92915.0,92914.0,1.553762]
[1732089738584,0.02151855,92919.0,92918.0,0.053759]
[1732089738889,0.10963855,92919.0,92918.0,0.053759]
[1732089739093,0.053758,92921.0,92918.0,0.053759]
[1732089739094,0.053758,92921.0,92918.0,0.06935506]
[1732089739275,0.04760088,92941.0,92919.0,0.08812]
[1732089739482,0.3608,92946.0,92945.0,0.053744]
[1732089741290,0.053745,92943.0,92941.0,0.0324]
[1732089741473,0.3608,92946.0,92937.0,0.053748]
[1732089741474,0.053747,92940.0,92937.0,0.053748]
[1732089741678,0.053747,92940.0,92927.0,0.2862664]
[1732089741679,0.053749,92936.0,92927.0,0.0992]
[1732089741879,0.06935506,92929.0,92928.0,0.053753]
[1732089742183,0.06935506,92929.0,92928.0,1.553753]
[1732089743584,0.08812,92933.0,92932.0,0.053751]
[1732089743792,0.15747506,92933.0,92932.0,0.053751]
[1732089744888,0.053753,92930.0,92928.0,1.553753]
[1732089745087,0.06935506,92929.0,92928.0,1.553753]
[1732089749902,0.55326312,92929.0,92928.0,1.5]
[1732089750091,0.61606312,92929.0,92928.0,1.5]
[1732089751208,0.61606312,92929.0,92920.0,0.0001255]
[1732089751391,0.43015506,92921.0,92908.0,0.0054]
[1732089751696,0.43015506,92921.0,92910.0,0.005]
[1732089751697,0.053763,92912.0,92910.0,0.005]
[1732089751885,0.053763,92912.0,92908.0,0.06935506]
[1732089751886,0.08812,92911.0,92908.0,0.06935506]
[1732089752093,0.3608,92909.0,92908.0,0.06935506]
[1732089752285,0.3608,92909.0,92908.0,1.56935506]
[1732089752487,0.36091088,92909.0,92908.0,1.56935506]
[1732089754004,0.36091088,92909.0,92908.0,1.5]
[1732089756703,0.36091088,92909.0,92908.0,1.553765]
[1732089758908,0.41467488,92909.0,92908.0,1.553765]
[1732089759202,0.41467488,92909.0,92908.0,1.5]
[1732089759598,0.41467488,92909.0,92898.0,0.005]
[1732089759795,0.12312506,92900.0,92897.0,0.053771]
[1732089759996,0.08812,92899.0,92898.0,0.053771]
[1732089760196,0.08812,92899.0,92898.0,1.553771]
[1732089761902,0.44892,92899.0,92898.0,1.553771]
[1732089762413,0.44892,92899.0,92898.0,0.053771]
[1732089762801,0.44892,92899.0,92898.0,0.12312606]
[1732089766103,0.08812,92899.0,92898.0,0.12312606]
[1732089766311,0.3608,92907.0,92906.0,0.053766]
[1732089766613,0.44888,92907.0,92906.0,0.12312106]
[1732089767096,0.3608,92907.0,92906.0,0.12312106]
[1732089767297,0.08808,92907.0,92906.0,0.19247612]
[1732089767607,0.00011088,92909.0,92908.0,0.053765]
[1732089770106,0.00011088,92909.0,92908.0,0.376645]
[1732089772117,0.00011088,92909.0,92908.0,0.053765]
[1732089779013,0.05387488,92909.0,92908.0,0.12312006]
[1732089779207,0.41467488,92909.0,92908.0,0.12312006]
[1732089779808,0.41467488,92909.0,92908.0,0.053765]
[1732089780120,0.41467488,92909.0,92908.0,0.12312006]
[1732089780723,0.053771,92897.0,92896.0,0.053771]
[1732089780921,0.053773,92895.0,92894.0,0.00161463]
[1732089781117,0.12312806,92895.0,92894.0,0.00161463]
[1732089781322,0.19248312,92895.0,92894.0,0.00161463]
[1732089781523,0.053778,92885.0,92884.0,0.005]
[1732089781712,0.05378,92882.0,92881.0,0.00010488]
[1732089783223,0.10193072,92882.0,92881.0,0.00010488]
[1732089783728,0.10193072,92882.0,92872.0,0.005]
[1732089783911,0.053789,92867.0,92865.0,0.05379]
[1732089784114,0.46464518,92873.0,92862.0,0.053791]
[1732089784115,0.05379,92865.0,92862.0,0.053791]
[1732089784309,0.053792,92862.0,92860.0,0.00161507]
[1732089784924,9.471e-05,92861.0,92860.0,0.00161507]
[1732089785120,9.471e-05,92861.0,92854.0,0.00681]
[1732089785121,9.471e-05,92861.0,92858.0,0.053794]
[1732089785427,0.08808,92860.0,92858.0,0.053794]
[1732089785611,0.141873,92860.0,92858.0,0.053794]
[1732089785811,0.24571818,92860.0,92858.0,0.053794]
[1732089786729,0.24571818,92860.0,92854.0,0.00681]
[1732089786730,0.053795,92856.0,92854.0,0.00681]
[1732089786912,0.3608,92855.0,92854.0,0.00681]
[1732089790522,0.44892,92855.0,92854.0,0.060606]
[1732089790728,0.3608,92855.0,92854.0,0.060606]
[1732089791223,0.44892,92855.0,92854.0,0.060606]
[1732089791625,0.3608,92855.0,92854.0,0.060606]
[1732089791828,0.44892,92855.0,92854.0,0.060606]
[1732089793930,0.45004,92855.0,92854.0,0.060606]
[1732089794832,0.45004,92855.0,92854.0,0.00681]
[1732089795026,0.45013296,92855.0,92854.0,0.00681]
[1732089795422,0.45013296,92855.0,92842.0,0.005]
[1732089795623,0.46464518,92843.0,92837.0,0.005]
[1732089795830,0.46464518,92843.0,92835.0,0.058807]
[1732089795831,0.08924,92842.0,92835.0,0.053807]
[1732089796042,0.10384518,92836.0,92835.0,0.053807]
[1732089796926,0.12024,92842.0,92829.0,0.0321]
[1732089797238,0.12024,92842.0,92839.0,0.053805]
[1732089797239,0.05388355,92841.0,92839.0,0.053805]
[1732089797738,0.053805,92839.0,92833.0,0.053808]
[1732089798031,0.053805,92839.0,92829.0,0.0371]
[1732089798032,0.053805,92839.0,92835.0,0.053807]
[1732089798231,0.10384518,92836.0,92835.0,0.053807]
[1732089798933,0.19308518,92836.0,92824.0,0.005]
[1732089799144,0.414608,92833.0,92824.0,0.005]
[1732089799434,0.414608,92833.0,92826.0,0.053812]
[1732089799643,0.503848,92833.0,92826.0,0.053812]
[1732089800236,0.503848,92833.0,92824.0,0.005]
[1732089800533,0.45004,92833.0,92831.0,0.053809]
[1732089800734,0.45004,92833.0,92825.0,0.053813]
[1732089801036,0.45004,92833.0,92824.0,0.005]
[1732089801625,0.45004,92833.0,92825.0,0.053813]
[1732089802033,0.45004,92833.0,92826.0,0.053812]
[1732089802337,0.45004,92833.0,92824.0,0.005]
[1732089802839,0.3608,92833.0,92824.0,0.005]
[1732089803137,0.45004,92833.0,92824.0,0.005]
[1732089803726,0.3608,92833.0,92824.0,0.005]
[1732089804235,0.45004,92833.0,92825.0,0.0302]
[1732089804726,0.503848,92833.0,92824.0,0.005]
[1732089808634,0.503888,92833.0,92824.0,0.005]
[1732089808826,0.053817,92818.0,92817.0,0.005]
[1732089809022,0.053817,92818.0,92812.0,0.0633]
[1732089809023,0.2470416,92818.0,92812.0,0.0633]
[1732089809230,0.3608,92817.0,92812.0,0.0633]
[1732089809636,0.053819,92815.0,92812.0,0.0633]
[1732089810538,0.3608,92817.0,92812.0,0.0633]
[1732089812637,0.3608,92817.0,92806.0,0.005]
[1732089812847,0.3608,92808.0,92802.0,0.053826]
[1732089813139,0.08928,92807.0,92801.0,0.0423]
[1732089813443,0.10384518,92803.0,92801.0,0.0423]
[1732089813625,0.00013604,92802.0,92801.0,0.0423]
[1732089815334,0.08941604,92802.0,92801.0,0.0423]
[1732089816042,0.00013604,92802.0,92801.0,0.096127]
[1732089816339,0.08928,92803.0,92801.0,0.053827]
[1732089816535,0.08928,92805.0,92804.0,0.15767018]
[1732089816931,0.3608,92809.0,92804.0,0.10384518]
[1732089817246,0.3608,92809.0,92808.0,0.053823]
[1732089817431,0.36088574,92809.0,92808.0,0.053823]
[1732089819354,0.36088574,92809.0,92808.0,1.553823]
[1732089822752,0.36088574,92809.0,92808.0,0.053823]
[1732089826946,0.41470774,92809.0,92808.0,0.053823]
[1732089829234,0.41470774,92809.0,92803.0,0.053826]
[1732089829235,0.053824,92806.0,92803.0,0.053826]
[1732089829435,0.46464518,92804.0,92803.0,0.053826]
[1732089830439,0.46464518,92804.0,92791.0,1.5]
[1732089830647,0.3608,92792.0,92791.0,0.053833]
[1732089830851,0.4518,92792.0,92791.0,0.053833]
[1732089833641,0.8126,92792.0,92791.0,0.053833]
[1732089835545,0.866438,92792.0,92791.0,0.053833]
[1732089835945,0.86651466,92792.0,92791.0,0.053833]
[1732089839250,0.053843,92784.0,92772.0,0.25681207]
[1732089839453,0.3608,92774.0,92771.0,0.00161674]
[1732089839646,0.4518,92774.0,92773.0,0.053849]
[1732089840354,0.4518,92774.0,92773.0,0.377209]
[1732089840355,0.3608,92774.0,92773.0,0.377209]
[1732089840954,0.3608,92774.0,92773.0,0.63402107]
[1732089841554,0.3608,92774.0,92773.0,0.377209]
[1732089843159,0.005,92784.0,92783.0,0.053843]
[1732089843458,0.45184,92788.0,92787.0,0.053841]
[1732089845347,0.3608,92788.0,92787.0,0.053841]
[1732089845560,0.45184,92788.0,92787.0,0.053841]
[1732089846962,0.45184,92788.0,92787.0,1.553841]
[1732089848354,0.3608,92788.0,92787.0,1.553841]
[1732089849360,0.3608,92793.0,92791.0,0.053838]
[1732089849361,0.09111666,92792.0,92791.0,0.053838]
[1732089849562,7.666e-05,92792.0,92791.0,0.053838]
[1732089850657,0.005,92800.0,92799.0,0.053834]
[1732089850861,0.3608,92801.0,92800.0,0.053833]
[1732089851255,0.3608,92801.0,92800.0,0.085033]
[1732089851458,0.3608,92801.0,92800.0,1.616433]
[1732089854260,0.3608,92801.0,92800.0,1.87363634]
[1732089855277,0.249875,92801.0,92800.0,1.96587634]
[1732089855574,0.02154449,92829.0,92800.0,1.96587634]
[1732089855575,0.3608,92852.0,92800.0,3.37632789]
[1732089855758,0.3608,92852.0,92851.0,0.053803]
[1732089856071,0.09224,92858.0,92837.0,0.36098142]
[1732089856369,0.45304,92858.0,92857.0,0.0538]
[1732089857757,0.47458136,92858.0,92857.0,0.0538]
[1732089859555,0.47458136,92858.0,92842.0,1.5]
[1732089859755,0.10384518,92845.0,92831.0,0.0054]
[1732089859962,0.10384518,92845.0,92825.0,0.415538]
[1732089859963,0.3608,92839.0,92838.0,0.053811]
[1732089860759,0.00060001,92850.0,92849.0,0.053805]
[1732089861080,0.09284001,92850.0,92849.0,0.053805]
[1732089861365,0.09224,92850.0,92849.0,0.053805]
[1732089862167,0.3647,92857.0,92856.0,0.053801]
[1732089862364,0.4569,92857.0,92856.0,0.053801]
[1732089864077,0.3647,92857.0,92856.0,0.053801]
[1732089864275,0.053804,92851.0,92845.0,0.053806]
[1732089864468,0.3608,92846.0,92837.0,0.3608]
[1732089864777,0.453,92846.0,92845.0,0.053807]
[1732089865477,0.0922,92846.0,92845.0,0.053807]
[1732089867365,0.10384518,92855.0,92837.0,0.3608]
[1732089867563,0.10384518,92855.0,92853.0,0.053802]
[1732089867564,0.0922,92854.0,92853.0,0.053802]
[1732089871371,0.0922,92854.0,92845.0,0.053807]
[1732089871574,0.0922,92854.0,92853.0,0.053802]
[1732089872065,0.0039,92857.0,92856.0,0.053801]
[1732089872262,0.0039,92859.0,92858.0,0.053799]
[1732089872464,0.0039,92859.0,92858.0,0.15764418]
[1732089873668,0.0039,92859.0,92858.0,1.65764418]
[1732089873977,0.0922,92890.0,92871.0,0.053792]
[1732089874182,0.0922,92890.0,92879.0,0.053787]
[1732089874183,0.0327,92880.0,92879.0,0.053787]
[1732089876972,0.0327,92880.0,92879.0,0.15763218]
[1732089878777,0.0327,92880.0,92879.0,0.053787]
[1732089879171,0.1249,92880.0,92879.0,0.053787]
[1732089882271,0.0327,92880.0,92879.0,0.053787]
[1732089884788,0.031,92883.0,92882.0,0.053786]
[1732089887091,0.0333,92889.0,92888.0,0.053782]
[1732089891787,0.12722,92889.0,92888.0,0.053782]
[1732089893193,0.0333,92889.0,92888.0,0.053782]
[1732089893492,0.12722,92889.0,92888.0,0.053782]
[1732089900805,0.12722,92889.0,92878.0,1.5]
[1732089901001,0.3608,92879.0,92878.0,1.5]
[1732089901403,0.45472,92879.0,92867.0,0.005]
[1732089901601,0.45472,92879.0,92864.0,0.10384518]
[1732089901817,0.508507,92879.0,92878.0,0.053788]
[1732089902194,0.45472,92879.0,92878.0,0.053788]
[1732089903903,0.09392,92879.0,92878.0,0.053788]
[1732089907008,0.09392,92879.0,92875.0,0.04798266]
[1732089907212,0.09392,92879.0,92878.0,0.053788]
[1732089907507,0.147707,92879.0,92878.0,0.053788]
[1732089908299,0.147707,92879.0,92878.0,0.052788]
[1732089908609,0.09392,92879.0,92878.0,0.052788]
[1732089910310,0.147707,92879.0,92878.0,0.052788]
[1732089913017,0.09392,92879.0,92878.0,0.052788]
[1732089917717,0.3608,92883.0,92878.0,0.052788]
[1732089918012,0.3608,92883.0,92882.0,0.41547109]
[1732089918320,0.3608,92883.0,92882.0,0.15763118]
[1732089918705,0.3608,92883.0,92882.0,0.41547109]
[1732089918908,0.09576,92886.0,92885.0,0.053784]
[1732089919812,0.3608,92892.0,92888.0,0.053782]
[1732089920010,0.3608,92892.0,92889.0,0.053781]
[1732089920011,0.09576,92891.0,92889.0,0.053781]
[1732089922219,0.09576,92891.0,92890.0,0.053781]
[1732089922713,0.45656,92892.0,92890.0,0.053781]
[1732089923410,0.09576,92892.0,92890.0,0.053781]
[1732089924623,0.09576,92892.0,92890.0,0.31163119]
[1732089925308,0.09576,92892.0,92890.0,0.053781]
[1732089927121,0.09576,92892.0,92888.0,0.36169537]
[1732089927306,0.09576,92892.0,92891.0,0.05378]
[1732089930719,0.09576,92892.0,92891.0,0.12311108]
[1732089933826,0.0308,92898.0,92891.0,0.12311108]
[1732089933827,0.09576,92893.0,92892.0,0.05378]
[1732089934027,0.09576,92893.0,92892.0,0.12311108]
[1732089934327,0.0308,92898.0,92897.0,0.053777]
[1732089934529,0.12656,92898.0,92897.0,0.12310808]
[1732089936723,0.12656,92898.0,92897.0,0.053777]
[1732089939220,0.48736,92898.0,92897.0,0.053777]
[1732089943625,0.48736,92898.0,92897.0,0.31133711]
[1732089944227,0.48736,92898.0,92897.0,0.053777]
[1732089944632,0.48736,92898.0,92897.0,0.31133711]
[1732089945021,0.483,92898.0,92897.0,0.31133711]
[1732089945627,0.3916,92898.0,92897.0,0.053777]
[1732089945926,0.55233108,92898.0,92897.0,0.31156542]
[1732089946642,0.55233108,92898.0,92897.0,0.053777]
[1732089947029,0.55233108,92898.0,92897.0,0.31159173]
[1732089947733,0.55233108,92898.0,92897.0,0.053777]
[1732089948032,0.55233108,92898.0,92897.0,0.31160855]
[1732089948238,0.55233108,92898.0,92897.0,0.053777]
[1732089950241,0.3916,92898.0,92897.0,0.053777]
[1732089950429,0.0308,92898.0,92897.0,0.053777]
[1732089950631,0.1,92900.0,92899.0,0.053776]
[1732089950831,0.1,92900.0,92899.0,1.62310708]
[1732089961937,0.1,92900.0,92899.0,1.98390708]
[1732089962136,0.0327,92912.0,92911.0,0.053769]
[1732089962345,0.0327,92912.0,92911.0,0.31121413]
[1732089962744,0.0327,92912.0,92911.0,0.053769]
[1732089962947,0.0327,92912.0,92911.0,0.31121413]
[1732089963340,0.0914,92918.0,92915.0,0.053766]
[1732089963662,0.0914,92918.0,92917.0,0.053765]
[1732089964151,0.0303,92919.0,92918.0,0.053765]
[1732089964450,0.03,92927.0,92918.0,0.25704878]
[1732089964657,0.03,92927.0,92926.0,0.05376]
[1732089965338,0.06933108,92945.0,92939.0,0.053752]
[1732089965544,0.0914,92948.0,92939.0,0.31560122]
[1732089965545,0.0322,92948.0,92939.0,0.31560122]
[1732089966051,0.0322,92948.0,92939.0,0.12308308]
[1732089966247,0.1236,92948.0,92939.0,0.12308308]
[1732089966436,0.1236,92948.0,92939.0,0.31543025]
[1732089966750,0.09182,92947.0,92939.0,0.31543025]
[1732089966952,0.09182,92947.0,92939.0,0.12308308]
[1732089967141,0.09178,92947.0,92939.0,0.12308308]
[1732089967550,0.09178,92947.0,92939.0,0.053752]
[1732089967551,0.16111108,92947.0,92939.0,0.053752]
[1732089968243,0.06933108,92942.0,92934.0,0.19222086]
[1732089968442,0.06933108,92942.0,92923.0,0.00084]
[1732089968443,0.06933108,92935.0,92932.0,0.04922015]
[1732089968746,0.06933108,92933.0,92932.0,0.053756]
[1732089969346,0.06933108,92938.0,92936.0,0.053754]
[1732089972339,0.4528,92940.0,92930.0,0.06933108]
[1732089972543,0.45216,92940.0,92939.0,0.053752]
[1732089973351,0.44205797,92949.0,92939.0,0.053752]
[1732089973352,0.00060001,92949.0,92939.0,0.85321416]
[1732089973555,0.005,92964.0,92963.0,0.053739]
[1732089973741,0.005,92964.0,92949.0,0.053746]
[1732089973742,0.053737,92966.0,92957.0,0.053742]
[1732089973945,0.06933108,92958.0,92957.0,0.053742]
[1732089974345,0.3608,92970.0,92956.0,0.43013108]
[1732089974545,0.3608,92970.0,92966.0,0.053736]
[1732089974954,0.3608,92970.0,92958.0,1.50604]
[1732089974955,0.3608,92970.0,92958.0,1.505]
[1732089975152,0.3608,92970.0,92969.0,0.053735]
[1732089977863,0.3598,92970.0,92969.0,0.053735]
[1732089981055,0.12282,92976.0,92969.0,0.053735]
[1732089982159,0.3608,92972.0,92969.0,0.053735]
[1732089984263,0.3608,92972.0,92970.0,0.053735]
[1732089986464,0.12282,92976.0,92970.0,0.053735]
[1732089986864,0.09128,92975.0,92970.0,0.053735]
[1732089988673,0.3608,92973.0,92970.0,0.053735]
[1732089991156,0.0315,92976.0,92965.0,0.15225219]
[1732089991475,0.0315,92976.0,92970.0,0.053735]
[1732089991968,0.0315,92976.0,92970.0,1.553735]
[1732089992371,0.09128,92983.0,92982.0,0.053728]
[1732089992761,0.3608,92984.0,92975.0,0.1036464]
[1732089992973,0.3608,92984.0,92972.0,0.005]
[1732089992974,0.3608,92984.0,92983.0,0.053727]
[1732089994755,0.3608,92984.0,92983.0,0.12291346]
[1732089995372,0.90056001,92990.0,92989.0,0.053724]
[1732089995668,0.9,92990.0,92989.0,0.12291046]
[1732089996057,0.9,92990.0,92989.0,0.053724]
[1732089996967,0.9,92990.0,92989.0,1.553724]
[1732089999879,0.1,93000.0,92999.0,0.053718]
[1732090000173,0.1,93000.0,92999.0,0.12290446]
[1732090002161,0.1,93000.0,92999.0,0.053718]
[1732090002582,0.244997,93000.0,92996.0,0.06918646]
[1732090002769,0.244997,93000.0,92997.0,0.053719]
[1732090003564,0.19128,93000.0,92989.0,1.86684]
[1732090003873,0.42998646,92996.0,92989.0,1.5]
[1732090004180,0.053722,92992.0,92990.0,0.053723]
[1732090004381,0.0631,92991.0,92990.0,0.12290946]
[1732090004879,0.0631,92991.0,92989.0,0.00108]
[1732090004880,0.053723,92990.0,92989.0,0.00108]
[1732090005085,0.053723,92990.0,92971.0,0.55237076]
[1732090005086,0.053724,92989.0,92985.0,0.053726]
[1732090005381,0.053725,92988.0,92987.0,0.053724]
[1732090005571,0.084225,92988.0,92987.0,0.053724]
[1732090005772,0.0305,92988.0,92987.0,0.053724]
[1732090006785,0.0305,92988.0,92985.0,0.00104]
[1732090006786,0.3913,92988.0,92985.0,0.00104]
[1732090006985,0.053726,92987.0,92986.0,0.053725]
[1732090007172,0.053728,92981.0,92980.0,0.05534081]
[1732090007371,0.053728,92981.0,92980.0,1.55534081]
[1732090008582,0.414526,92985.0,92983.0,0.053727]
[1732090009085,0.053728,92981.0,92980.0,1.50265281]
[1732090009376,0.053728,92981.0,92980.0,1.50161281]
[1732090010478,0.3608,92985.0,92980.0,1.50161281]
[1732090010479,0.3608,92985.0,92984.0,0.053726]
[1732090010679,0.3608,92985.0,92980.0,1.50161281]
[1732090010680,0.3608,92985.0,92980.0,0.00104]
[1732090010882,0.10361065,92982.0,92959.0,0.19157076]
[1732090011071,0.053753,92939.0,92931.0,0.053757]
[1732090011379,0.2072213,92960.0,92922.0,0.00108]
[1732090011380,0.10361065,92935.0,92922.0,0.00108]
[1732090011570,0.15144,92938.0,92899.0,0.3608]
[1732090011571,0.3608,92923.0,92899.0,0.3608]
[1732090011776,0.3608,92912.0,92910.0,0.053769]
[1732090011971,0.3608,92912.0,92904.0,0.053772]
[1732090011972,0.45048,92912.0,92904.0,0.053772]
[1732090012167,0.10361065,92911.0,92904.0,0.053772]
[1732090012366,0.10361065,92911.0,92897.0,0.3608]
[1732090012367,0.13441065,92911.0,92905.0,0.053772]
[1732090012981,0.3608,92912.0,92910.0,0.053769]
[1732090013179,0.3608,92912.0,92901.0,0.10361065]
[1732090013388,0.3608,92912.0,92898.0,0.053776]
[1732090013389,0.3608,92902.0,92898.0,0.053776]
[1732090013879,0.414574,92902.0,92898.0,0.053776]
[1732090014087,0.414574,92902.0,92892.0,0.053779]
[1732090014283,0.414574,92902.0,92887.0,0.3608]
[1732090014595,0.414574,92902.0,92890.0,0.053781]
[1732090014886,0.414574,92902.0,92892.0,0.05378]
[1732090016975,0.08968,92901.0,92887.0,0.10361065]
[1732090017176,0.08968,92901.0,92899.0,0.053775]
[1732090018085,0.08968,92901.0,92900.0,0.05390915]
[1732090018086,0.08972,92901.0,92900.0,0.05390915]
[1732090018272,0.3608,92902.0,92900.0,0.05390915]
[1732090019693,0.0319,92904.0,92903.0,0.053773]
[1732090020284,0.0029,92919.0,92910.0,0.053769]
[1732090020485,0.08972,92914.0,92910.0,0.053769]
[1732090021188,0.11124181,92914.0,92910.0,0.053769]
[1732090022085,0.02152181,92914.0,92910.0,0.053769]
[1732090022490,0.0315,92917.0,92910.0,0.053769]
[1732090022677,0.12122,92917.0,92910.0,0.053769]
[1732090022985,0.053768,92912.0,92905.0,0.053772]
[1732090023194,0.3608,92906.0,92904.0,0.053773]
[1732090025089,0.02152181,92916.0,92900.0,0.00013415]
[1732090025090,0.09564,92911.0,92900.0,0.00013415]
[1732090025593,0.09564,92911.0,92909.0,0.053769]
[1732090028285,0.09564,92911.0,92900.0,0.00013415]
[1732090028478,0.053774,92902.0,92900.0,0.05390915]
[1732090028882,0.3608,92907.0,92905.0,0.053772]
[1732090029780,0.414571,92907.0,92905.0,0.053772]
[1732090031380,0.3608,92907.0,92905.0,0.053772]
[1732090031884,0.3608,92915.0,92914.0,0.053767]
[1732090035192,0.0315,92917.0,92911.0,0.10361065]
[1732090035491,0.0315,92917.0,92916.0,0.053766]
[1732090036384,0.3608,92929.0,92924.0,0.053761]
[1732090036584,0.36140001,92929.0,92925.0,0.05376]
[1732090036793,0.3608,92929.0,92916.0,0.005]
[1732090036986,0.3608,92929.0,92911.0,0.10861065]
[1732090037180,0.3608,92929.0,92927.0,0.053759]
[1732090037587,0.3608,92929.0,92917.0,0.005]
[1732090037796,0.3608,92929.0,92912.0,0.005]
[1732090037797,0.05376,92926.0,92912.0,0.005]
[1732090038092,0.3608,92929.0,92912.0,0.005]
[1732090038491,0.3608,92929.0,92925.0,0.053761]
[1732090038682,0.053759,92928.0,92925.0,0.053761]
[1732090039093,0.053764,92920.0,92918.0,0.053764]
[1732090039392,0.3608,92919.0,92918.0,0.053764]
[1732090039603,0.3608,92919.0,92912.0,0.005]
[1732090039893,0.053768,92913.0,92911.0,0.053768]
[1732090040191,0.032,92912.0,92911.0,0.053768]
[1732090040782,0.032,92912.0,92911.0,0.15737865]
[1732090041094,0.09564,92925.0,92924.0,0.053761]
[1732090041797,0.25145675,92926.0,92915.0,0.053766]
[1732090042103,0.25145675,92926.0,92911.0,0.10361065]
[1732090042104,0.15581675,92925.0,92924.0,0.053761]
[1732090042299,0.18751675,92925.0,92924.0,0.053761]
[1732090042786,0.28315675,92925.0,92924.0,0.053761]
[1732090044189,0.33691775,92925.0,92924.0,0.053761]
[1732090045685,0.33691775,92925.0,92914.0,0.005]
[1732090045686,0.053766,92918.0,92917.0,0.053765]
[1732090046096,0.3608,92919.0,92909.0,0.005]
[1732090046301,0.053771,92909.0,92908.0,0.05377]
[1732090046599,0.3608,92910.0,92900.0,0.00013415]
[1732090046804,0.0304,92908.0,92907.0,0.053771]
[1732090047101,0.3912,92908.0,92907.0,0.053771]
[1732090049309,0.36636001,92919.0,92907.0,0.053771]
[1732090049310,0.09564,92914.0,92907.0,0.053771]
[1732090049487,0.09564,92914.0,92913.0,0.053768]
[1732090050896,0.149407,92914.0,92913.0,0.053768]
[1732090051507,0.30120334,92914.0,92913.0,0.053768]
[1732090051811,0.149407,92914.0,92913.0,0.053768]
[1732090051990,0.3013021,92914.0,92913.0,0.053768]
[1732090053892,0.3013021,92914.0,92913.0,1.553768]
[1732090054305,0.3013021,92914.0,92913.0,1.5]
[1732090054306,0.2056621,92914.0,92913.0,1.5]
[1732090054607,0.3037021,92914.0,92913.0,1.5]
[1732090055808,0.3005978,92914.0,92913.0,1.5]
[1732090056107,0.52227662,92914.0,92913.0,1.5]
[1732090056505,0.57498696,92914.0,92913.0,1.5]
[1732090056693,0.34949838,92914.0,92913.0,1.5]
[1732090057009,0.42619711,92914.0,92913.0,1.5]
[1732090057213,0.51905308,92914.0,92913.0,1.5]
[1732090057713,0.51914188,92914.0,92903.0,0.005]
[1732090058008,0.053774,92901.0,92900.0,0.00013415]
[1732090058209,0.151814,92901.0,92900.0,1.50013415]
[1732090059703,0.09804,92901.0,92900.0,1.55390915]
[1732090064112,0.0315,92903.0,92902.0,0.053774]
[1732090064315,0.12954,92903.0,92902.0,0.053774]
[1732090065915,0.183313,92903.0,92902.0,0.053774]
[1732090068009,0.12954,92903.0,92902.0,0.053774]
[1732090068406,0.0315,92903.0,92902.0,0.053774]
[1732090071411,0.085273,92903.0,92902.0,0.053774]
[1732090073215,0.053774,92901.0,92900.0,1.50117415]
[1732090073415,0.053774,92901.0,92900.0,1.50013415]
[1732090081922,0.053774,92901.0,92900.0,1.55390915]
[1732090085117,0.0313,92902.0,92900.0,1.50013415]
[1732090085319,0.0313,92902.0,92901.0,0.053774]
[1732090087022,0.085074,92902.0,92901.0,0.053774]
[1732090089123,0.445874,92902.0,92901.0,0.053774]
[1732090091931,0.545714,92902.0,92901.0,0.053774]
[1732090092431,0.545714,92902.0,92900.0,1.50117415]
[1732090092432,0.49194,92902.0,92900.0,1.50117415]
[1732090092627,0.053774,92901.0,92900.0,1.50013415]
[1732090095923,0.053774,92901.0,92900.0,1.55390915]
[1732090098940,0.49250001,92902.0,92900.0,1.50013415]
[1732090099135,0.49194,92902.0,92901.0,0.053774]
[1732090100637,0.3608,92902.0,92901.0,0.053774]
[1732090101342,0.3608,92902.0,92901.0,0.15738465]
[1732090102246,0.00556001,92911.0,92910.0,0.053769]
[1732090102440,0.00556001,92911.0,92901.0,0.10361065]
[1732090102441,0.04835072,92913.0,92902.0,0.3110479]
[1732090102631,0.089367,92915.0,92914.0,0.053767]
[1732090102837,0.084367,92915.0,92914.0,0.053767]
[1732090103232,0.084367,92915.0,92914.0,1.553767]
[1732090103647,0.0306,92915.0,92914.0,1.553767]
[1732090103839,0.38292074,92921.0,92920.0,0.053763]
[1732090103840,0.36140001,92921.0,92920.0,0.053763]
[1732090104041,0.3608,92921.0,92920.0,0.15737365]
[1732090105248,0.3608,92921.0,92920.0,1.65737365]
[1732090105436,0.0381,92930.0,92920.0,1.65737365]
[1732090105642,0.0381,92930.0,92929.0,0.053758]